2CCN - Level 2 Cost Centre Name,,9CCN - Level 9 Cost Centre Name,9CCC - Level 9 Cost Centre Code,9AN - Level 9 Account Name,9AC - Level 9 Account Code,Date posted,Date of transaction,Merchant Name,MerchantCity,Originating Account Name,Originating Account Number,MCC/SIC Code,MCC Description,Original Amount,Currency,Conversion Rate,Billed Amount,DebitCredit,ReferenceNbr,Statement Cycle,AccountName
Gloucester City Council,23UE,MANAGING DIRECTOR,RE100,CONFERENCE/MEETING EXPENSES,5510,2015-08-31,2015-08-27,PREMIER INN44529750,BOURNEMOUTH,REDACTED,471565******1967,3811,PREMIER INN,103.5,Pound Sterling (826),1,103.5,Debit,74019475241529000099783,2015-09-02,GLOUCESTER CC
Gloucester City Council,23UE,MANAGING DIRECTOR,RE100,CONFERENCE/MEETING EXPENSES,5510,2015-09-02,2015-09-01,WWW.SOLACE.ORG.UK,PONTEFRACT,REDACTED,471565******1967,8699,MEMBERSHIP ORGANIZATIONS NOT ELSEWHERE CLASSIFIED,594,Pound Sterling (826),1,594,Debit,74085325245465000133904,2015-09-02,GLOUCESTER CC
Gloucester City Council,23UE,TOURISM MARKETING,LT100,EXHIBITS AND COLLECTIONS,5038,2015-08-05,2015-08-04,PAYPAL *LEGSGALOREL,35314369001,REDACTED,471565******4015,5621,WOMEN'S READY TO WEAR STORES,16.5,Pound Sterling (826),1,16.5,Debit,74998765216530138602878,2015-09-02,GLOUCESTER CC
Gloucester City Council,23UE,TOURISM MARKETING,LT100,EXHIBITS AND COLLECTIONS,5038,2015-08-20,2015-08-18,WWW.RWC.COM,2088929451,REDACTED,471565******4015,5655,SPORTS APPAREL  RIDING APPAREL STORES,15.95,Pound Sterling (826),1,15.95,Debit,74830505231089396128343,2015-09-02,GLOUCESTER CC
Gloucester City Council,23UE,TOURISM MARKETING,LT100,OTHER MINOR SUPPLIES SERVICES,5590,2015-08-26,2015-08-25,GLOUCESTER CC,GLOUCESTER,REDACTED,471565******4015,9399,GOVERNMENT SERVICES NOT ELSEWHERE CLASSIFIED,5,Pound Sterling (826),1,5,Debit,74745095238080001977710,2015-09-02,GLOUCESTER CC
Gloucester City Council,23UE,TOURISM MARKETING,LT100,OTHER MINOR SUPPLIES SERVICES,5590,2015-08-26,2015-08-25,GLOUCESTER CC,GLOUCESTER,REDACTED,471565******4015,9399,GOVERNMENT SERVICES NOT ELSEWHERE CLASSIFIED,-5,Pound Sterling (826),1,-5,Credit,74745095238080001977736,2015-09-02,GLOUCESTER CC
Gloucester City Council,23UE,HOMELESSNESS,CH120,REMOVAL AND STORAGE FEES,5513,2015-08-10,2015-08-08,NATIONAL EXPRESS LIMITED,BIRMINGHAM,REDACTED,471565******1443,4131,BUS LINES  CHARTERS  TOUR BUSES,44,Pound Sterling (826),1,44,Debit,74929325221004950069806,2015-09-02,GLOUCESTER CC
Gloucester City Council,23UE,HOMELESSNESS,CH120,REMOVAL AND STORAGE FEES,5513,2015-08-10,2015-08-08,NATIONAL EXPRESS LIMITED,BIRMINGHAM,REDACTED,471565******1443,4131,BUS LINES  CHARTERS  TOUR BUSES,31.7,Pound Sterling (826),1,31.7,Debit,74929325221004950073071,2015-09-02,GLOUCESTER CC
Gloucester City Council,23UE,HOMELESSNESS,CH120,VOCATIONAL TRAINING,2970,2015-08-14,2015-08-13,TRAINLINE.COM,03332 022 222,REDACTED,471565******1443,4112,PASSENGER RAILWAYS,78.44,Pound Sterling (826),1,78.44,Debit,74998865225532215058682,2015-09-02,GLOUCESTER CC
Gloucester City Council,23UE,HOMELESSNESS,CH120,FEES FOR SERVICES RECEIVED,5350,2015-08-31,2015-08-28,STATION HOTEL,GLOUCESTER,REDACTED,471565******1443,7011,LODGING  HOTELS  MOTELS  RESORTS,196,Pound Sterling (826),1,196,Debit,74579155241008764925616,2015-09-02,GLOUCESTER CC
Gloucester City Council,23UE,HOMELESSNESS,CH120,FEES FOR SERVICES RECEIVED,5350,2015-09-02,2015-09-01,STATION HOTEL,GLOUCESTER,REDACTED,471565******1443,7011,LODGING  HOTELS  MOTELS  RESORTS,39,Pound Sterling (826),1,39,Debit,74579155245009462171491,2015-09-02,GLOUCESTER CC
Gloucester City Council,23UE,BUSINESS TRANSFORMATION & TECH,RT700,FEES FOR SERVICES RECEIVED,5350,2015-08-11,2015-08-10,TELEVISION AERIAL COMP,CATERHAM,REDACTED,471565******8223,7299,MISCELLANEOUS PERSONAL SERVICES,331.2,Pound Sterling (826),1,331.2,Debit,74678585223070012648416,2015-09-02,GLOUCESTER CC
Gloucester City Council,23UE,BUSINESS TRANSFORMATION & TECH,RT700,FEES FOR SERVICES RECEIVED,5350,2015-08-19,2015-08-18,B & Q,GLOUCESTER GL,REDACTED,471565******8223,5211,LUMBER AND BUILDING MATERIALS STORES,21.57,Pound Sterling (826),1,21.57,Debit,74579155231007476794197,2015-09-02,GLOUCESTER CC
Gloucester City Council,23UE,DOCKS COMPLEX - CATERING SERVS,RB110,CHARGES FOR SERVICES,9300,2015-08-20,2015-08-19,SAINSBURYS SUPERMA,GLOUCESTER QU,REDACTED,471565******8223,5411,GROCERY STORES  SUPERMARKETS,69.8,Pound Sterling (826),1,69.8,Debit,74579155232002875866836,2015-09-02,GLOUCESTER CC
Gloucester City Council,23UE,INVESTMENT PROPERTY,RB500,GENERAL REPAIR/MAINT BUILDINGS,3000,2015-08-31,2015-08-28,B & Q,GLOUCESTER GL,REDACTED,471565******8223,5211,LUMBER AND BUILDING MATERIALS STORES,86.27,Pound Sterling (826),1,86.27,Debit,74579155241009771762711,2015-09-02,GLOUCESTER CC
Gloucester City Council,23UE,HEAD OF NEIGHBOURHOOD SERVICES,GN100,OTHER MINOR SUPPLIES SERVICES,5590,2015-08-14,2015-08-13,B & Q,GLOUCESTER GL,REDACTED,471565******1326,5211,LUMBER AND BUILDING MATERIALS STORES,55.54,Pound Sterling (826),1,55.54,Debit,74579155226007177963767,2015-09-02,GLOUCESTER CC
Gloucester City Council,23UE,HEAD OF NEIGHBOURHOOD SERVICES,GN100,OTHER MINOR SUPPLIES SERVICES,5590,2015-08-20,2015-08-19,B & Q,GLOUCESTER GL,REDACTED,471565******1326,5211,LUMBER AND BUILDING MATERIALS STORES,20.05,Pound Sterling (826),1,20.05,Debit,74579155232004371679796,2015-09-02,GLOUCESTER CC
Gloucester City Council,23UE,HEAD OF NEIGHBOURHOOD SERVICES,GN100,OTHER MINOR SUPPLIES SERVICES,5590,2015-08-24,2015-08-21,B & Q,GLOUCESTER GL,REDACTED,471565******1326,5211,LUMBER AND BUILDING MATERIALS STORES,15.11,Pound Sterling (826),1,15.11,Debit,74579155234000976344289,2015-09-02,GLOUCESTER CC
Gloucester City Council,23UE,CITY MUSEUM CATERING,LM202,CATERING PROVISIONS -FOOD,5110,2015-08-03,2015-07-31,PURE GUSTO,BOLTON,REDACTED,471565******9991,5499,MISC FOOD STORES-SPECIALITY CONVENIENCE MARKETS VENDING MACHINES,126.66,Pound Sterling (826),1,126.66,Debit,74463655212892136040821,2015-09-02,GLOUCESTER CC
Gloucester City Council,23UE,CITY MUSEUM AND ART GALLERY,LM200,ADVERTISING AND PUBLICITY,5702,2015-08-03,2015-07-31,FACEBOOK EL6H78NJW2,www.fb.me/ads,REDACTED,471565******9991,7311,ADVERTISING SERVICES,40,Pound Sterling (826),1,40,Debit,74987505212452654071247,2015-09-02,GLOUCESTER CC
Gloucester City Council,23UE,FOLK MUSEUM,LM210,ADVERTISING AND PUBLICITY,5702,2015-08-03,2015-07-31,FACEBOOK EL6H78NJW2,www.fb.me/ads,REDACTED,471565******9991,7311,ADVERTISING SERVICES,40,Pound Sterling (826),1,40,Debit,74987505212452654071247,2015-09-02,GLOUCESTER CC
Gloucester City Council,23UE,FOLK MUSEUM,LM210,CATERING PROVISIONS -FOOD,5110,2015-08-05,2015-08-04,BOOKER LIMITED GLOUCESTER,GLOUCESTER,REDACTED,471565******9991,5811,CATERERS,139.91,Pound Sterling (826),1,139.91,Debit,74463665216912168029685,2015-09-02,GLOUCESTER CC
Gloucester City Council,23UE,FOLK MUSEUM,LM210,CATERING PROVISIONS -FOOD,5110,2015-08-10,2015-08-07,BOOKER LIMITED GLOUCESTER,GLOUCESTER,REDACTED,471565******9991,5811,CATERERS,123.99,Pound Sterling (826),1,123.99,Debit,74463665219922190325479,2015-09-02,GLOUCESTER CC
Gloucester City Council,23UE,CITY MUSEUM CATERING,LM202,OPERATIONAL EQUIPMENT <5000,5012,2015-08-12,2015-08-11,ARGOS LTD,GLOUCESTER,REDACTED,471565******9991,5310,DISCOUNT STORES,49.99,Pound Sterling (826),1,49.99,Debit,74579155224002773847094,2015-09-02,GLOUCESTER CC
Gloucester City Council,23UE,CITY MUSEUM AND ART GALLERY,LM200,CARE OF COLLECTIONS,5039,2015-08-14,2015-08-13,BUYABATTERY CO UK,HEYWOOD,REDACTED,471565******9991,5732,ELECTRONIC SALES,14.05,Pound Sterling (826),1,14.05,Debit,74463655225892263953122,2015-09-02,GLOUCESTER CC
Gloucester City Council,23UE,ARTS EDUCATIONAL PROMOTIONS,LA610,OPERATIONAL EQUIPMENT <5000,5012,2015-08-17,2015-08-15,FASTHOSTS INTERNET,3330142700,REDACTED,471565******9991,4816,COMPUTER NETWORK/INFORMATION SERVICES,19.2,Pound Sterling (826),1,19.2,Debit,74830505228295367644433,2015-09-02,GLOUCESTER CC
Gloucester City Council,23UE,ARTS EDUCATIONAL PROMOTIONS,LA610,OPERATIONAL EQUIPMENT <5000,5012,2015-08-24,2015-08-22,FASTHOSTS INTERNET,3330142700,REDACTED,471565******9991,4816,COMPUTER NETWORK/INFORMATION SERVICES,5.99,Pound Sterling (826),1,5.99,Debit,74830505235295329034948,2015-09-02,GLOUCESTER CC
Gloucester City Council,23UE,FOLK MUSEUM,LM210,OPERATIONAL EQUIPMENT <5000,5012,2015-08-28,2015-08-26,WWW.THEWORKS.CO.UK,1213136000,REDACTED,471565******9991,5942,BOOK STORES,25.62,Pound Sterling (826),1,25.62,Debit,74830505238039365387068,2015-09-02,GLOUCESTER CC
Gloucester City Council,23UE,CITY MUSEUM AND ART GALLERY,LM200,ADVERTISING AND PUBLICITY,5702,2015-09-01,2015-08-31,FACEBOOK GZ2GB8NJW2,www.fb.me/ads,REDACTED,471565******9991,7311,ADVERTISING SERVICES,16.5,Pound Sterling (826),1,16.5,Debit,74987505243369408091243,2015-09-02,GLOUCESTER CC
Gloucester City Council,23UE,FOLK MUSEUM,LM210,ADVERTISING AND PUBLICITY,5702,2015-09-01,2015-08-31,FACEBOOK GZ2GB8NJW2,www.fb.me/ads,REDACTED,471565******9991,7311,ADVERTISING SERVICES,16.5,Pound Sterling (826),1,16.5,Debit,74987505243369408091243,2015-09-02,GLOUCESTER CC
Gloucester City Council,23UE,GUILDHALL BAR AND CAF�,LA210,CATERING PROVISIONS -FOOD,5110,2015-08-03,2015-08-01,ALDI,GLOUCESTER,REDACTED,471565******2470,5411,GROCERY STORES  SUPERMARKETS,14.43,Pound Sterling (826),1,14.43,Debit,74019475213495000995442,2015-09-02,GLOUCESTER CC
Gloucester City Council,23UE,GUILDHALL BAR AND CAF�,LA210,CATERING PROVISIONS -FOOD,5110,2015-08-04,2015-08-03,ALDI,GLOUCESTER,REDACTED,471565******2470,5411,GROCERY STORES  SUPERMARKETS,8.63,Pound Sterling (826),1,8.63,Debit,74019475215495000900127,2015-09-02,GLOUCESTER CC
Gloucester City Council,23UE,GLOUCESTER GUILDHALL,LA100,OPERATIONAL EQUIPMENT <5000,5012,2015-08-06,2015-08-05,Amazon UK Marketplace,800-279-6620,REDACTED,471565******2470,5942,BOOK STORES,93.08,Pound Sterling (826),1,93.08,Debit,74313225217000216316769,2015-09-02,GLOUCESTER CC
Gloucester City Council,23UE,GLOUCESTER GUILDHALL,LA100,OPERATIONAL EQUIPMENT <5000,5012,2015-08-06,2015-08-05,Amazon UK Marketplace,800-279-6620,REDACTED,471565******2470,5999,MISCELLANEOUS AND RETAIL STORES,8.16,Pound Sterling (826),1,8.16,Debit,74313225217000227858411,2015-09-02,GLOUCESTER CC
Gloucester City Council,23UE,BLACKFRIARS CATERING,LA220,CATERING PROVISIONS -LIQUOR,5111,2015-08-07,2015-08-06,ALDI,GLOUCESTER,REDACTED,471565******2470,5411,GROCERY STORES  SUPERMARKETS,46.92,Pound Sterling (826),1,46.92,Debit,74019475219495000882123,2015-09-02,GLOUCESTER CC
Gloucester City Council,23UE,GLOUCESTER GUILDHALL,LA100,OPERATIONAL EQUIPMENT <5000,5012,2015-08-07,2015-08-06,Amazon UK Marketplace,800-279-6620,REDACTED,471565******2470,5999,MISCELLANEOUS AND RETAIL STORES,10.05,Pound Sterling (826),1,10.05,Debit,74313225218000504108877,2015-09-02,GLOUCESTER CC
Gloucester City Council,23UE,GLOUCESTER GUILDHALL,LA100,OPERATIONAL EQUIPMENT <5000,5012,2015-08-07,2015-08-06,Amazon UK Marketplace,800-279-6620,REDACTED,471565******2470,5999,MISCELLANEOUS AND RETAIL STORES,59.99,Pound Sterling (826),1,59.99,Debit,74313225218000836665651,2015-09-02,GLOUCESTER CC
Gloucester City Council,23UE,BLACKFRIARS CATERING,LA220,HIRE OF EQUIPMENT,5020,2015-08-10,2015-08-07,WILKO RETAIL LIMIT,GLOUCESTER 14,REDACTED,471565******2470,5722,HOUSEHOLD APPLIANCE STORES,5,Pound Sterling (826),1,5,Debit,74579155220000171328729,2015-09-02,GLOUCESTER CC
Gloucester City Council,23UE,GLOUCESTER GUILDHALL,LA100,OPERATIONAL EQUIPMENT <5000,5012,2015-08-10,2015-08-07,Amazon UK Marketplace,800-279-6620,REDACTED,471565******2470,5999,MISCELLANEOUS AND RETAIL STORES,15.86,Pound Sterling (826),1,15.86,Debit,74313225219000207352714,2015-09-02,GLOUCESTER CC
Gloucester City Council,23UE,GLOUCESTER GUILDHALL,LA100,OPERATIONAL EQUIPMENT <5000,5012,2015-08-11,2015-08-10,Amazon UK Marketplace,800-279-6620,REDACTED,471565******2470,5999,MISCELLANEOUS AND RETAIL STORES,-37.2,Pound Sterling (826),1,-37.2,Credit,74313225222000636871461,2015-09-02,GLOUCESTER CC
Gloucester City Council,23UE,BLACKFRIARS CATERING,LA220,CATERING PROVISIONS -FOOD,5110,2015-08-14,2015-08-13,BOOKER LIMITED GLOUCESTER,GLOUCESTER,REDACTED,471565******2470,5811,CATERERS,114.94,Pound Sterling (826),1,114.94,Debit,74463665225912258261718,2015-09-02,GLOUCESTER CC
Gloucester City Council,23UE,GUILDHALL EVENTS,LA200,FEES FOR SERVICES RECEIVED,5350,2015-08-17,2015-08-14,MIPERMIT PARKING-DOM,INTERNET,REDACTED,471565******2470,7523,AUTOMOBILE PARKING LOTS AND GARAGES,-40,Pound Sterling (826),1,-40,Credit,74745105227010078808241,2015-09-02,GLOUCESTER CC
Gloucester City Council,23UE,GUILDHALL BAR AND CAF�,LA210,CATERING PROVISIONS -FOOD,5110,2015-08-18,2015-08-17,ASDA SUPERSTORE,GLOUCESTER,REDACTED,471565******2470,5411,GROCERY STORES  SUPERMARKETS,37.52,Pound Sterling (826),1,37.52,Debit,74698175230020190339707,2015-09-02,GLOUCESTER CC
Gloucester City Council,23UE,GUILDHALL BAR AND CAF�,LA210,CATERING PROVISIONS -FOOD,5110,2015-08-19,2015-08-18,HOLLAND & BARRETT,GLOUCESTER,REDACTED,471565******2470,5999,MISCELLANEOUS AND RETAIL STORES,9.45,Pound Sterling (826),1,9.45,Debit,74579155231004978534551,2015-09-02,GLOUCESTER CC
Gloucester City Council,23UE,GUILDHALL BAR AND CAF�,LA210,CATERING PROVISIONS -FOOD,5110,2015-08-25,2015-08-24,ICELAND,GLOUCESTER,REDACTED,471565******2470,5411,GROCERY STORES  SUPERMARKETS,9,Pound Sterling (826),1,9,Debit,74698165237070104944252,2015-09-02,GLOUCESTER CC
Gloucester City Council,23UE,GUILDHALL BAR AND CAF�,LA210,CATERING PROVISIONS -FOOD,5110,2015-08-25,2015-08-24,ASDA SUPERSTORE,GLOUCESTER,REDACTED,471565******2470,5411,GROCERY STORES  SUPERMARKETS,38.28,Pound Sterling (826),1,38.28,Debit,74698175237070180809527,2015-09-02,GLOUCESTER CC
Gloucester City Council,23UE,BLACKFRIARS CATERING,LA220,CATERING PROVISIONS -LIQUOR,5111,2015-08-27,2015-08-26,ALDI,GLOUCESTER,REDACTED,471565******2470,5411,GROCERY STORES  SUPERMARKETS,45.83,Pound Sterling (826),1,45.83,Debit,74019475239495000736044,2015-09-02,GLOUCESTER CC
Gloucester City Council,23UE,MEMBERS SUPPORT,RC300,PUBLIC TRANSPORTATION,4061,2015-08-03,2015-07-31,THE TRAINLINE.COM,RAIL TICKETS,REDACTED,471565******4841,4112,PASSENGER RAILWAYS,171.46,Pound Sterling (826),1,171.46,Debit,74998865212530000554860,2015-09-02,GLOUCESTER CC
Gloucester City Council,23UE,MEMBERS SUPPORT,RC300,PUBLIC TRANSPORTATION,4061,2015-08-03,2015-07-31,THE TRAINLINE.COM,RAIL TICKETS,REDACTED,471565******4841,4112,PASSENGER RAILWAYS,171.46,Pound Sterling (826),1,171.46,Debit,74998865212530000555933,2015-09-02,GLOUCESTER CC
Gloucester City Council,23UE,CONTACT CENTRE,RB300,FEES FOR SERVICES RECEIVED,5350,2015-08-05,2015-08-04,NEW INN HOTEL,GLOUCESTER,REDACTED,471565******4841,7011,LODGING  HOTELS  MOTELS  RESORTS,108,Pound Sterling (826),1,108,Debit,74579155217008862160199,2015-09-02,GLOUCESTER CC
Gloucester City Council,23UE,RUGBY WORLD CUP,LT450,PUBLIC TRANSPORTATION,4061,2015-08-13,2015-08-12,THE TRAINLINE.COM,RAIL TICKETS,REDACTED,471565******8839,4112,PASSENGER RAILWAYS,171.46,Pound Sterling (826),1,171.46,Debit,74998865224531198574898,2015-09-02,GLOUCESTER CC
Gloucester City Council,23UE,MEMBERS SUPPORT,RC300,PUBLIC TRANSPORTATION,4061,2015-08-21,2015-08-20,THE TRAINLINE.COM,RAIL TICKETS,REDACTED,471565******8839,4112,PASSENGER RAILWAYS,26.67,Pound Sterling (826),1,26.67,Debit,74998865232533333033814,2015-09-02,GLOUCESTER CC
Gloucester City Council,23UE,HEAD OF DEVELOPMENT SERVICES,GR101,VOCATIONAL TRAINING,2970,2015-08-21,2015-08-20,THE TRAINLINE.COM,RAIL TICKETS,REDACTED,471565******8839,4112,PASSENGER RAILWAYS,43.76,Pound Sterling (826),1,43.76,Debit,74998865232533333033756,2015-09-02,GLOUCESTER CC
Gloucester City Council,23UE,REGISTRATION OF ELECTORS,RS400,PUBLIC TRANSPORTATION,4061,2015-08-21,2015-08-20,THE TRAINLINE.COM,RAIL TICKETS,REDACTED,471565******8839,4112,PASSENGER RAILWAYS,71.91,Pound Sterling (826),1,71.91,Debit,74998865232533333033962,2015-09-02,GLOUCESTER CC
Gloucester City Council,23UE,MEMBERS SUPPORT,RC300,PUBLIC TRANSPORTATION,4061,2015-08-24,2015-08-21,THE TRAINLINE.COM,RAIL TICKETS,REDACTED,471565******8839,4112,PASSENGER RAILWAYS,102.2,Pound Sterling (826),1,102.2,Debit,74998865233533349851554,2015-09-02,GLOUCESTER CC
Gloucester City Council,23UE,MEMBERS SUPPORT,RC300,PUBLIC TRANSPORTATION,4061,2015-08-24,2015-08-21,THE TRAINLINE.COM,RAIL TICKETS,REDACTED,471565******8839,4112,PASSENGER RAILWAYS,45.39,Pound Sterling (826),1,45.39,Debit,74998865233533349851398,2015-09-02,GLOUCESTER CC
Gloucester City Council,23UE,GLOUCESTER GUILDHALL,LA100,MAINTENANCE OF EQUIPMENT,5030,2015-08-03,2015-07-30,COMBINED PRECISION,PRESTON,REDACTED,471565******7657,5065,ELECTRICAL PARTS AND EQUIPMENT,96.41,Pound Sterling (826),1,96.41,Debit,74830505211192100338184,2015-09-02,GLOUCESTER CC
Gloucester City Council,23UE,GUILDHALL EVENTS,LA200,ADVERTISING AND PUBLICITY,5702,2015-08-03,2015-07-31,FACEBOOK RZF7K7SD72,www.fb.me/ads,REDACTED,471565******7657,7311,ADVERTISING SERVICES,20.03,Pound Sterling (826),1,20.03,Debit,74987505212458840901247,2015-09-02,GLOUCESTER CC
Gloucester City Council,23UE,GUILDHALL CINEMA,LA202,ADVERTISING AND PUBLICITY,5702,2015-08-04,2015-08-03,WWW.INSTANTPRINT.C,01709 382202,REDACTED,471565******7657,7338,QUICK-COPY AND REPRODUCTION SERVICES,25.99,Pound Sterling (826),1,25.99,Debit,74579155216004674987896,2015-09-02,GLOUCESTER CC
Gloucester City Council,23UE,GUILDHALL EVENTS,LA200,ADVERTISING AND PUBLICITY,5702,2015-08-07,2015-08-06,TWITTER*ADVERTISING,TWITTER.COM,REDACTED,471565******7657,7311,ADVERTISING SERVICES,1.01,Pound Sterling (826),1,1.01,Debit,74313225218000619349143,2015-09-02,GLOUCESTER CC
Gloucester City Council,23UE,GUILDHALL EVENTS,LA200,ADVERTISING AND PUBLICITY,5702,2015-08-14,2015-08-13,TWITTER*ADVERTISING,TWITTER.COM,REDACTED,471565******7657,7311,ADVERTISING SERVICES,8.41,Pound Sterling (826),1,8.41,Debit,74313225225000988931167,2015-09-02,GLOUCESTER CC
Gloucester City Council,23UE,GUILDHALL EVENTS,LA200,FEES FOR SERVICES RECEIVED,5350,2015-08-17,2015-08-15,PRIMARK,GLOUCESTER,REDACTED,471565******7657,5651,FAMILY CLOTHING STORES,3.8,Pound Sterling (826),1,3.8,Debit,74019475228907000018853,2015-09-02,GLOUCESTER CC
Gloucester City Council,23UE,GUILDHALL EVENTS,LA200,FEES FOR SERVICES RECEIVED,5350,2015-08-17,2015-08-15,PRIMARK,GLOUCESTER,REDACTED,471565******7657,5651,FAMILY CLOTHING STORES,60.4,Pound Sterling (826),1,60.4,Debit,74019475228907000020164,2015-09-02,GLOUCESTER CC
Gloucester City Council,23UE,GUILDHALL CINEMA,LA202,ADVERTISING AND PUBLICITY,5702,2015-08-18,2015-08-17,WWW.INSTANTPRINT.C,01709 382202,REDACTED,471565******7657,7338,QUICK-COPY AND REPRODUCTION SERVICES,25.99,Pound Sterling (826),1,25.99,Debit,74579155230002576693960,2015-09-02,GLOUCESTER CC
Gloucester City Council,23UE,GUILDHALL EVENTS,LA200,ADVERTISING AND PUBLICITY,5702,2015-08-20,2015-08-20,FACEBOOK 4MQHS7JD72,www.fb.me/ads,REDACTED,471565******7657,7311,ADVERTISING SERVICES,40.02,Pound Sterling (826),1,40.02,Debit,74987505231815304921242,2015-09-02,GLOUCESTER CC
Gloucester City Council,23UE,GLOUCESTER GUILDHALL,LA100,LICENCES,5703,2015-08-21,2015-08-19,TV LICENSING,3007906071,REDACTED,471565******7657,7392,MANAGEMENT  CONSULTING AND PUBLIC RELATIONS SERVICES,145.5,Pound Sterling (826),1,145.5,Debit,74579155232004574903811,2015-09-02,GLOUCESTER CC
Gloucester City Council,23UE,GUILDHALL EVENTS,LA200,ADVERTISING AND PUBLICITY,5702,2015-08-25,2015-08-24,WWW.INSTANTPRINT.C,01709 382202,REDACTED,471565******7657,7338,QUICK-COPY AND REPRODUCTION SERVICES,13.99,Pound Sterling (826),1,13.99,Debit,74579155237001475046919,2015-09-02,GLOUCESTER CC
Gloucester City Council,23UE,GUILDHALL EVENTS,LA200,FEES FOR SERVICES RECEIVED,5350,2015-08-26,2015-08-25,MIPERMIT PARKING-DOM,INTERNET,REDACTED,471565******7657,7523,AUTOMOBILE PARKING LOTS AND GARAGES,10,Pound Sterling (826),1,10,Debit,74745105238080070109200,2015-09-02,GLOUCESTER CC
Gloucester City Council,23UE,GUILDHALL EVENTS,LA200,FEES FOR SERVICES RECEIVED,5350,2015-08-26,2015-08-25,MIPERMIT PARKING-DOM,INTERNET,REDACTED,471565******7657,7523,AUTOMOBILE PARKING LOTS AND GARAGES,10,Pound Sterling (826),1,10,Debit,74745105238080070109259,2015-09-02,GLOUCESTER CC
Gloucester City Council,23UE,GUILDHALL EVENTS,LA200,ADVERTISING AND PUBLICITY,5702,2015-08-26,2015-08-25,WWW.INSTANTPRINT.C,01709 382202,REDACTED,471565******7657,7338,QUICK-COPY AND REPRODUCTION SERVICES,30.99,Pound Sterling (826),1,30.99,Debit,74579155238002675255382,2015-09-02,GLOUCESTER CC
Gloucester City Council,23UE,BLACKFRIARS,LA609,OPERATIONAL EQUIPMENT <5000,5012,2015-08-26,2015-08-25,Amazon UK Retail,AMAZON.CO.UK,REDACTED,471565******7657,5969,ALL OTHER DIRECT MARKETERS,189.99,Pound Sterling (826),1,189.99,Debit,74313225237000017073318,2015-09-02,GLOUCESTER CC
Gloucester City Council,23UE,GUILDHALL EVENTS,LA200,ADVERTISING AND PUBLICITY,5702,2015-08-26,2015-08-25,WWW.INSTANTPRINT.C,01709 382202,REDACTED,471565******7657,7338,QUICK-COPY AND REPRODUCTION SERVICES,-17.99,Pound Sterling (826),1,-17.99,Credit,74579155238002775255399,2015-09-02,GLOUCESTER CC
Gloucester City Council,23UE,BLACKFRIARS,LA609,OPERATIONAL EQUIPMENT <5000,5012,2015-08-27,2015-08-25,EBUYER (UK) LTD,SHEFFIELD,REDACTED,471565******7657,5722,HOUSEHOLD APPLIANCE STORES,139.98,Pound Sterling (826),1,139.98,Debit,74678585239090005014535,2015-09-02,GLOUCESTER CC
Gloucester City Council,23UE,GUILDHALL CINEMA,LA202,ADVERTISING AND PUBLICITY,5702,2015-08-27,2015-08-26,WWW.INSTANTPRINT.C,01709 382202,REDACTED,471565******7657,7338,QUICK-COPY AND REPRODUCTION SERVICES,29,Pound Sterling (826),1,29,Debit,74579155239005974228272,2015-09-02,GLOUCESTER CC
Gloucester City Council,23UE,BLACKFRIARS,LA609,OPERATIONAL EQUIPMENT <5000,5012,2015-08-28,2015-08-27,Amazon UK Retail,AMAZON.CO.UK,REDACTED,471565******7657,5969,ALL OTHER DIRECT MARKETERS,35.98,Pound Sterling (826),1,35.98,Debit,74313225239000813523928,2015-09-02,GLOUCESTER CC
Gloucester City Council,23UE,GUILDHALL EVENTS,LA200,FEES FOR SERVICES RECEIVED,5350,2015-08-31,2015-08-29,ITUNES.COM/BILL,ITUNES.COM,REDACTED,471565******7657,5735,RECORD SHOPS,8.99,Pound Sterling (826),1,8.99,Debit,74313225241000885546159,2015-09-02,GLOUCESTER CC
Gloucester City Council,23UE,GUILDHALL EVENTS,LA200,ADVERTISING AND PUBLICITY,5702,2015-09-01,2015-08-31,FACEBOOK V32N382E72,www.fb.me/ads,REDACTED,471565******7657,7311,ADVERTISING SERVICES,25.47,Pound Sterling (826),1,25.47,Debit,74987505243320532431540,2015-09-02,GLOUCESTER CC
Gloucester City Council,23UE,BUSINESS PLANNING & PERFORMANC,RL500,FEES FOR SERVICES RECEIVED,5350,2015-08-05,2015-08-04,BIZ STATIONERY SUPERSTORE,GLOUCESTER,REDACTED,471565******3318,5111,STATIONERY OFFICE SUPPLIES PRINTING AND WRITING PAPER,38.86,Pound Sterling (826),1,38.86,Debit,74463655216912167140757,2015-09-02,GLOUCESTER CC
Gloucester City Council,23UE,CREMATORIUM,HC200,OPERATIONAL EQUIPMENT <5000,5012,2015-08-26,2015-08-25,Amazon UK Retail,AMAZON.CO.UK,REDACTED,471565******3318,5969,ALL OTHER DIRECT MARKETERS,80.25,Pound Sterling (826),1,80.25,Debit,74313225237000826644150,2015-09-02,GLOUCESTER CC
Gloucester City Council,23UE,CLIENT REVS & BENS CONTRACT,RT240,COURT FEES,5358,2015-08-05,2015-08-04,HMCOURTS-SERVICE.G,1452420100,REDACTED,471565******5409,9222,FINES,4179,Pound Sterling (826),1,4179,Debit,74579155217002676867909,2015-09-02,GLOUCESTER CC
Gloucester City Council,23UE,FINANCIAL SERVICES,RT200,VOCATIONAL TRAINING,2970,2015-08-20,2015-08-19,WWW.OSBORNEBOOKS.CO.UK,INTERNET,REDACTED,471565******5409,5964,CATALOG MERCHANTS,130.8,Pound Sterling (826),1,130.8,Debit,74678585232040232231813,2015-09-02,GLOUCESTER CC
